[Event "*** Titled Tuesday Blitz"]
[Site "Chess.com"]
[Date "2021.03.09"]
[Round "1"]
[White "Handszar"]
[Black "elohunter1999"]
[Result "1-0"]
[WhiteElo "2364"]
[BlackElo "2636"]
[TimeControl "180+1"]
[EndTime "10:07:29 PST"]
[Termination "Handszar won by checkmate"]

1. e4 {[%clk 0:02:59.3]} 1... c5 {[%clk 0:02:59.2]} 2. Nf3 {[%clk 0:02:58.4]}
2... Nc6 {[%clk 0:02:58.8]} 3. Bb5 {[%clk 0:02:57.6]} 3... e6 {[%clk 0:02:58.7]}
4. O-O {[%clk 0:02:56.7]} 4... Nge7 {[%clk 0:02:58.3]} 5. d4 {[%clk 0:02:56.7]}
5... cxd4 {[%clk 0:02:57.2]} 6. Nxd4 {[%clk 0:02:56.8]} 6... Qb6 {[%clk
0:02:57.1]} 7. Nxc6 {[%clk 0:02:49.1]} 7... bxc6 {[%clk 0:02:56]} 8. Bd3 {[%clk
0:02:47.8]} 8... Ng6 {[%clk 0:02:49.2]} 9. Nc3 {[%clk 0:02:31.9]} 9... Be7
{[%clk 0:02:41.5]} 10. Na4 {[%clk 0:02:21.9]} 10... Qa5 {[%clk 0:02:38.7]} 11.
c4 {[%clk 0:02:19.7]} 11... Ne5 {[%clk 0:02:31]} 12. Be2 {[%clk 0:02:15.6]}
12... Ba6 {[%clk 0:02:24.3]} 13. b3 {[%clk 0:02:13.4]} 13... O-O {[%clk
0:02:20.9]} 14. f4 {[%clk 0:02:06]} 14... Ng6 {[%clk 0:02:19.9]} 15. Bb2 {[%clk
0:01:11.6]} 15... Rad8 {[%clk 0:02:05.4]} 16. Bc3 {[%clk 0:01:05.4]} 16... Qc7
{[%clk 0:02:04.7]} 17. Qd2 {[%clk 0:01:05.4]} 17... f5 {[%clk 0:01:59.2]} 18.
Ba5 {[%clk 0:01:03.9]} 18... Qb7 {[%clk 0:01:44]} 19. Bxd8 {[%clk 0:01:03.3]}
19... Bxd8 {[%clk 0:01:43.6]} 20. exf5 {[%clk 0:01:01.8]} 20... Rxf5 {[%clk
0:01:43.2]} 21. Bd3 {[%clk 0:01:01.5]} 21... Rf7 {[%clk 0:01:40.7]} 22. Bxg6
{[%clk 0:00:57]} 22... hxg6 {[%clk 0:01:39.8]} 23. Kh1 {[%clk 0:00:57.9]} 23...
Bf6 {[%clk 0:01:38.2]} 24. Nc5 {[%clk 0:00:57.4]} 24... Qc8 {[%clk 0:01:35.2]}
25. Rad1 {[%clk 0:00:54.1]} 25... d5 {[%clk 0:01:34.1]} 26. Qd3 {[%clk
0:00:40.7]} 26... Bb7 {[%clk 0:01:08.6]} 27. Rfe1 {[%clk 0:00:39]} 27... Re7
{[%clk 0:01:07.9]} 28. Qxg6 {[%clk 0:00:37.9]} 28... Ba8 {[%clk 0:00:59.6]} 29.
Rd3 {[%clk 0:00:36.4]} 29... Qc7 {[%clk 0:00:40.6]} 30. Nxe6 {[%clk 0:00:27.2]}
30... Qxf4 {[%clk 0:00:38.6]} 31. g3 {[%clk 0:00:18.4]} 31... Qd6 {[%clk
0:00:30]} 32. c5 {[%clk 0:00:13.1]} 32... Qd7 {[%clk 0:00:26.6]} 33. Rde3 {[%clk
0:00:11.3]} 33... Bb7 {[%clk 0:00:18.8]} 34. Nf4 {[%clk 0:00:07.4]} 34... Bc8
{[%clk 0:00:16.4]} 35. Nh5 {[%clk 0:00:06]} 35... Qf5 {[%clk 0:00:08.1]} 36.
Nxf6+ {[%clk 0:00:05.4]} 36... Qxf6 {[%clk 0:00:07.8]} 37. Qxf6 {[%clk
0:00:05.6]} 37... gxf6 {[%clk 0:00:08.4]} 38. Rxe7 {[%clk 0:00:05.5]} 38... Bf5
{[%clk 0:00:09.3]} 39. Rc7 {[%clk 0:00:04.9]} 39... d4 {[%clk 0:00:08.4]} 40.
Re8# {[%clk 0:00:04.5]} 1-0

[Event "*** Titled Tuesday Blitz"]
[Site "Chess.com"]
[Date "2021.03.09"]
[Round "1"]
[White "IngOscarArdila"]
[Black "Artyom_ChessMate"]
[Result "0-1"]
[WhiteElo "2242"]
[BlackElo "2553"]
[TimeControl "180+1"]
[EndTime "10:07:29 PST"]
[Termination "Artyom_ChessMate won by resignation"]

1. d4 {[%clk 0:02:57.7]} 1... d5 {[%clk 0:02:58.9]} 2. c4 {[%clk 0:02:57.4]}
2... e6 {[%clk 0:02:57.6]} 3. Nc3 {[%clk 0:02:56.7]} 3... Nf6 {[%clk 0:02:57.4]}
4. Bg5 {[%clk 0:02:57]} 4... c5 {[%clk 0:02:56.7]} 5. Nf3 {[%clk 0:02:56.3]}
5... cxd4 {[%clk 0:02:56.2]} 6. Qxd4 {[%clk 0:02:54.8]} 6... Be7 {[%clk
0:02:55.6]} 7. cxd5 {[%clk 0:02:54.1]} 7... exd5 {[%clk 0:02:54.7]} 8. e3 {[%clk
0:02:53.1]} 8... Nc6 {[%clk 0:02:54.3]} 9. Bb5 {[%clk 0:02:53.1]} 9... O-O
{[%clk 0:02:54.5]} 10. Bxc6 {[%clk 0:02:33.7]} 10... bxc6 {[%clk 0:02:55.4]} 11.
Ne5 {[%clk 0:02:33.9]} 11... Bb7 {[%clk 0:02:47.5]} 12. O-O {[%clk 0:02:27.7]}
12... h6 {[%clk 0:02:47]} 13. Bh4 {[%clk 0:02:27.3]} 13... c5 {[%clk 0:02:46]}
14. Qd3 {[%clk 0:02:12.5]} 14... d4 {[%clk 0:02:45]} 15. exd4 {[%clk 0:02:06.8]}
15... cxd4 {[%clk 0:02:45.9]} 16. Ne2 {[%clk 0:01:56.8]} 16... Qd5 {[%clk
0:02:27.2]} 17. Nf3 {[%clk 0:01:48.3]} 17... Rad8 {[%clk 0:02:23.8]} 18. Nf4
{[%clk 0:01:46.7]} 18... Qe4 {[%clk 0:02:18]} 19. Qxe4 {[%clk 0:01:41.6]} 19...
Bxe4 {[%clk 0:02:18.9]} 20. Nd2 {[%clk 0:01:42.1]} 20... g5 {[%clk 0:02:17.7]}
21. Nxe4 {[%clk 0:01:24.5]} 21... Nxe4 {[%clk 0:02:18.6]} 22. Rfe1 {[%clk
0:01:24.7]} 22... f5 {[%clk 0:02:18.5]} 23. f3 {[%clk 0:01:24.3]} 23... gxh4
{[%clk 0:02:05.4]} 24. fxe4 {[%clk 0:01:24]} 24... Bb4 {[%clk 0:02:06.3]} 25.
Red1 {[%clk 0:01:17]} 25... fxe4 {[%clk 0:02:03.4]} 26. Ne6 {[%clk 0:01:17.2]}
26... e3 {[%clk 0:02:02]} 27. Nxf8 {[%clk 0:01:12.7]} 27... e2 {[%clk 0:01:54]}
28. Ne6 {[%clk 0:01:02.6]} 28... Re8 {[%clk 0:01:40.9]} 29. Nxd4 {[%clk
0:00:47]} 29... Bc5 {[%clk 0:01:36.3]} 30. Kf2 {[%clk 0:00:36.6]} 30... exd1=Q
{[%clk 0:01:33.8]} 31. Rxd1 {[%clk 0:00:35]} 31... Re4 {[%clk 0:01:34.7]} 32.
Kf3 {[%clk 0:00:26.1]} 32... Rxd4 {[%clk 0:01:34.2]} 33. Rc1 {[%clk 0:00:26.4]}
33... Bb6 {[%clk 0:01:32.6]} 34. Rc8+ {[%clk 0:00:25.8]} 34... Kg7 {[%clk
0:01:32.9]} 35. Rc2 {[%clk 0:00:26.4]} 35... Kf6 {[%clk 0:01:30.9]} 36. h3
{[%clk 0:00:26.6]} 36... Kg5 {[%clk 0:01:30.1]} 37. a3 {[%clk 0:00:26.9]} 37...
Rd3+ {[%clk 0:01:30.1]} 38. Ke4 {[%clk 0:00:25.6]} 38... Re3+ {[%clk 0:01:30]}
39. Kd5 {[%clk 0:00:25.9]} 39... Kf4 {[%clk 0:01:30.1]} 40. Kc6 {[%clk 0:00:24]}
40... Kg3 {[%clk 0:01:29.6]} 41. a4 {[%clk 0:00:23.3]} 41... Re4 {[%clk
0:01:27.7]} 42. Kb5 {[%clk 0:00:21.9]} 42... Rf4 {[%clk 0:01:25.8]} 43. b4
{[%clk 0:00:21.7]} 43... Rf5+ {[%clk 0:01:24.6]} 44. Kc6 {[%clk 0:00:21.6]}
44... Rf2 {[%clk 0:01:25.5]} 45. Rc3+ {[%clk 0:00:20.5]} 45... Kxg2 {[%clk
0:01:25.2]} 46. a5 {[%clk 0:00:21.1]} 46... Bd4 {[%clk 0:01:24.3]} 47. Rd3
{[%clk 0:00:21.1]} 47... Rc2+ {[%clk 0:01:22.2]} 48. Kd5 {[%clk 0:00:20.3]}
48... Bf2 {[%clk 0:01:22.6]} 49. b5 {[%clk 0:00:20]} 49... Ra2 {[%clk
0:01:21.6]} 50. a6 {[%clk 0:00:19]} 50... Rb2 {[%clk 0:01:20.1]} 51. Kc6 {[%clk
0:00:19.2]} 51... Bb6 {[%clk 0:01:18.9]} 52. Rc3 {[%clk 0:00:16.9]} 52... Rf2
{[%clk 0:01:16.4]} 53. Kd5 {[%clk 0:00:16.3]} 53... Rf3 {[%clk 0:01:15.8]} 54.
Rc4 {[%clk 0:00:16.7]} 54... Rxh3 {[%clk 0:01:15.4]} 55. Ke5 {[%clk 0:00:16.9]}
55... Re3+ {[%clk 0:01:14.2]} 56. Kf5 {[%clk 0:00:17]} 56... h3 {[%clk
0:01:15.1]} 57. Kg4 {[%clk 0:00:16.6]} 57... h2 {[%clk 0:01:15.1]} 58. Rc2+
{[%clk 0:00:16.9]} 58... Kg1 {[%clk 0:01:12.7]} 59. Rc1+ {[%clk 0:00:17.3]}
59... Kf2 {[%clk 0:01:13.2]} 60. Rc2+ {[%clk 0:00:17.6]} 60... Re2 {[%clk
0:01:13.7]} 61. Rc1 {[%clk 0:00:16.2]} 61... Re1 {[%clk 0:01:13]} 62. Rc2+
{[%clk 0:00:16.5]} 62... Kg1 {[%clk 0:01:13.2]} 63. Kg3 {[%clk 0:00:15]} 63...
h1=Q {[%clk 0:01:08.8]} 64. Rf2 {[%clk 0:00:11.8]} 0-1

[Event "*** Titled Tuesday Blitz"]
[Site "Chess.com"]
[Date "2021.03.09"]
[Round "1"]
[White "Steven_Rojas"]
[Black "dropstoneDP"]
[Result "0-1"]
[WhiteElo "2459"]
[BlackElo "2904"]
[TimeControl "180+1"]
[EndTime "10:07:30 PST"]
[Termination "dropstoneDP won by checkmate"]

1. c4 {[%clk 0:03:00.9]} 1... Nf6 {[%clk 0:02:57.2]} 2. Nc3 {[%clk 0:03:00.5]}
2... e5 {[%clk 0:02:56]} 3. Nf3 {[%clk 0:03:00]} 3... Nc6 {[%clk 0:02:56.7]} 4.
e3 {[%clk 0:03:00.6]} 4... Bb4 {[%clk 0:02:55.5]} 5. Qc2 {[%clk 0:03:00.6]} 5...
Bxc3 {[%clk 0:02:53.9]} 6. Qxc3 {[%clk 0:03:01.5]} 6... Qe7 {[%clk 0:02:54.5]}
7. d4 {[%clk 0:02:57.1]} 7... exd4 {[%clk 0:02:48]} 8. Nxd4 {[%clk 0:02:55]}
8... Nxd4 {[%clk 0:02:48.9]} 9. Qxd4 {[%clk 0:02:52.9]} 9... b6 {[%clk
0:02:49.1]} 10. Be2 {[%clk 0:02:09.7]} 10... Bb7 {[%clk 0:02:47.7]} 11. O-O
{[%clk 0:02:09.7]} 11... O-O {[%clk 0:02:43.7]} 12. b3 {[%clk 0:02:03.4]} 12...
d6 {[%clk 0:02:19.6]} 13. Bb2 {[%clk 0:02:02.8]} 13... a5 {[%clk 0:02:19.4]} 14.
a3 {[%clk 0:01:56.5]} 14... Rfe8 {[%clk 0:02:18.4]} 15. Rfe1 {[%clk 0:01:56.7]}
15... Qe6 {[%clk 0:02:16.9]} 16. Bf1 {[%clk 0:01:54.7]} 16... Qf5 {[%clk
0:02:14.8]} 17. f3 {[%clk 0:01:46.3]} 17... Qg6 {[%clk 0:02:13.5]} 18. Bd3
{[%clk 0:01:30.8]} 18... Qh6 {[%clk 0:02:13.2]} 19. b4 {[%clk 0:00:44.1]} 19...
Nd7 {[%clk 0:02:13.4]} 20. Kf2 {[%clk 0:00:39]} 20... Ne5 {[%clk 0:02:10.6]} 21.
Be2 {[%clk 0:00:38.8]} 21... axb4 {[%clk 0:02:04.6]} 22. axb4 {[%clk 0:00:38.3]}
22... f6 {[%clk 0:01:15.5]} 23. h3 {[%clk 0:00:36.5]} 23... Rxa1 {[%clk
0:01:10.3]} 24. Rxa1 {[%clk 0:00:34.6]} 24... Nc6 {[%clk 0:01:10.7]} 25. Qd2
{[%clk 0:00:26.2]} 25... Qg5 {[%clk 0:00:58.8]} 26. b5 {[%clk 0:00:21.5]} 26...
Na5 {[%clk 0:00:42.2]} 27. Bc3 {[%clk 0:00:19.6]} 27... Nb3 {[%clk 0:00:41.9]}
28. Qa2 {[%clk 0:00:13.7]} 28... Qxe3+ {[%clk 0:00:40.2]} 29. Kf1 {[%clk
0:00:11]} 29... Qxc3 {[%clk 0:00:36.1]} 30. Rd1 {[%clk 0:00:11.2]} 30... Nc5
{[%clk 0:00:35.4]} 31. Qb1 {[%clk 0:00:06.6]} 31... g6 {[%clk 0:00:35]} 32. h4
{[%clk 0:00:06.6]} 32... Kg7 {[%clk 0:00:34.6]} 33. h5 {[%clk 0:00:06.5]} 33...
Re5 {[%clk 0:00:33.7]} 34. hxg6 {[%clk 0:00:06.1]} 34... hxg6 {[%clk 0:00:34.6]}
35. Qa1 {[%clk 0:00:04.8]} 35... Qxa1 {[%clk 0:00:32.7]} 36. Rxa1 {[%clk
0:00:05.7]} 36... Re8 {[%clk 0:00:33.2]} 37. Kf2 {[%clk 0:00:06]} 37... Ra8
{[%clk 0:00:33.6]} 38. Re1 {[%clk 0:00:05.3]} 38... Ra2 {[%clk 0:00:33.2]} 39.
Kg3 {[%clk 0:00:05.8]} 39... Bc8 {[%clk 0:00:33.3]} 40. Bf1 {[%clk 0:00:05.8]}
40... Be6 {[%clk 0:00:33.6]} 41. Re3 {[%clk 0:00:04.3]} 41... g5 {[%clk
0:00:32.2]} 42. Re1 {[%clk 0:00:03.1]} 42... f5 {[%clk 0:00:32.1]} 43. f4 {[%clk
0:00:02.2]} 43... Kf6 {[%clk 0:00:31.4]} 44. fxg5+ {[%clk 0:00:02.4]} 44... Kxg5
{[%clk 0:00:32.1]} 45. Kf3 {[%clk 0:00:02.4]} 45... Rb2 {[%clk 0:00:31.3]} 46.
Re3 {[%clk 0:00:03.2]} 46... f4 {[%clk 0:00:30.6]} 47. Re1 {[%clk 0:00:03]}
47... Bg4# {[%clk 0:00:31.2]} 0-1

[Event "*** Titled Tuesday Blitz"]
[Site "Chess.com"]
[Date "2021.03.09"]
[Round "1"]
[White "CraiggoryC"]
[Black "Gerodot71"]
[Result "0-1"]
[WhiteElo "2262"]
[BlackElo "2564"]
[TimeControl "180+1"]
[EndTime "10:07:30 PST"]
[Termination "Gerodot71 won by resignation"]

1. e4 {[%clk 0:03:00.9]} 1... e5 {[%clk 0:02:59.8]} 2. Nf3 {[%clk 0:03:00.6]}
2... Nc6 {[%clk 0:03:00.4]} 3. Bb5 {[%clk 0:03:00.5]} 3... a6 {[%clk 0:03:00.5]}
4. Ba4 {[%clk 0:03:00.8]} 4... Nf6 {[%clk 0:03:00.5]} 5. d3 {[%clk 0:03:01.4]}
5... b5 {[%clk 0:02:59.4]} 6. Bb3 {[%clk 0:03:01.9]} 6... Be7 {[%clk 0:02:56.8]}
7. O-O {[%clk 0:03:01]} 7... O-O {[%clk 0:02:55.7]} 8. Nc3 {[%clk 0:03:01]} 8...
d6 {[%clk 0:02:55.5]} 9. a4 {[%clk 0:03:00.9]} 9... Rb8 {[%clk 0:02:54.4]} 10.
axb5 {[%clk 0:02:59.8]} 10... axb5 {[%clk 0:02:50.6]} 11. Re1 {[%clk 0:02:56.7]}
11... Bg4 {[%clk 0:02:47.2]} 12. h3 {[%clk 0:02:56.5]} 12... Bh5 {[%clk
0:02:45.8]} 13. Be3 {[%clk 0:02:54]} 13... Qd7 {[%clk 0:02:42.3]} 14. Nd5 {[%clk
0:02:51.1]} 14... Ra8 {[%clk 0:02:23.3]} 15. Qe2 {[%clk 0:02:31.6]} 15... Rfb8
{[%clk 0:02:05.2]} 16. c3 {[%clk 0:02:26.3]} 16... Na5 {[%clk 0:02:00.7]} 17.
Bc2 {[%clk 0:02:18.1]} 17... Nc6 {[%clk 0:01:47.6]} 18. Rec1 {[%clk 0:01:38.8]}
18... h6 {[%clk 0:01:34.4]} 19. Bd1 {[%clk 0:01:31.7]} 19... Nxd5 {[%clk
0:01:14]} 20. exd5 {[%clk 0:01:30.6]} 20... Nd8 {[%clk 0:01:14.5]} 21. Qd2
{[%clk 0:01:10.9]} 21... Bf6 {[%clk 0:01:07.3]} 22. d4 {[%clk 0:01:09.4]} 22...
e4 {[%clk 0:00:50.9]} 23. Nh2 {[%clk 0:01:05.1]} 23... Bxd1 {[%clk 0:00:47.9]}
24. Qxd1 {[%clk 0:00:58]} 24... Be7 {[%clk 0:00:46.7]} 25. g4 {[%clk 0:00:36.4]}
25... Bf8 {[%clk 0:00:43.6]} 26. Nf1 {[%clk 0:00:34.6]} 26... f5 {[%clk
0:00:26.4]} 27. Ng3 {[%clk 0:00:25.2]} 27... fxg4 {[%clk 0:00:26.5]} 28. Qxg4
{[%clk 0:00:24.3]} 28... Qf7 {[%clk 0:00:26.2]} 29. Nxe4 {[%clk 0:00:18]} 29...
Kh8 {[%clk 0:00:26.1]} 30. Rxa8 {[%clk 0:00:15.1]} 30... Rxa8 {[%clk 0:00:26.1]}
31. Re1 {[%clk 0:00:12.2]} 31... Qxd5 {[%clk 0:00:25.4]} 32. Qf3 {[%clk
0:00:12.3]} 32... Ne6 {[%clk 0:00:20.5]} 33. Nd2 {[%clk 0:00:11.3]} 33... Qxf3
{[%clk 0:00:20.2]} 34. Nxf3 {[%clk 0:00:12.2]} 34... Nd8 {[%clk 0:00:13]} 35.
Bd2 {[%clk 0:00:11.1]} 35... Nf7 {[%clk 0:00:13.1]} 36. Re2 {[%clk 0:00:10.6]}
36... Kg8 {[%clk 0:00:13.4]} 37. Bf4 {[%clk 0:00:10]} 37... Nh8 {[%clk
0:00:12.6]} 38. Nh4 {[%clk 0:00:09.9]} 38... Kf7 {[%clk 0:00:12]} 39. Nf5 {[%clk
0:00:09.8]} 39... Ng6 {[%clk 0:00:11.7]} 40. Bg3 {[%clk 0:00:09.5]} 40... Ra2
{[%clk 0:00:11.9]} 41. Kf1 {[%clk 0:00:08.4]} 41... Ne7 {[%clk 0:00:12.2]} 42.
b3 {[%clk 0:00:07.9]} 42... Rxe2 {[%clk 0:00:11.7]} 43. Kxe2 {[%clk 0:00:08.8]}
43... Nxf5 {[%clk 0:00:12.2]} 0-1

[Event "*** Titled Tuesday Blitz"]
[Site "Chess.com"]
[Date "2021.03.09"]
[Round "1"]
[White "vinniethepooh"]
[Black "konradrutkowski"]
[Result "1-0"]
[WhiteElo "2709"]
[BlackElo "2386"]
[TimeControl "180+1"]
[EndTime "10:07:31 PST"]
[Termination "vinniethepooh won by resignation"]

1. d4 {[%clk 0:03:00.9]} 1... Nf6 {[%clk 0:02:59.5]} 2. c4 {[%clk 0:03:01.4]}
2... g6 {[%clk 0:02:58.5]} 3. Nc3 {[%clk 0:03:01.8]} 3... Bg7 {[%clk 0:02:59.2]}
4. e4 {[%clk 0:03:02]} 4... O-O {[%clk 0:02:59.8]} 5. Be2 {[%clk 0:03:02.6]}
5... d6 {[%clk 0:02:59.9]} 6. Be3 {[%clk 0:03:03.1]} 6... Re8 {[%clk 0:02:46.4]}
7. Nf3 {[%clk 0:03:01.2]} 7... e5 {[%clk 0:02:33.9]} 8. dxe5 {[%clk 0:02:39.7]}
8... dxe5 {[%clk 0:02:33.1]} 9. Qxd8 {[%clk 0:02:37]} 9... Rxd8 {[%clk
0:02:32.9]} 10. Nd5 {[%clk 0:02:37.9]} 10... Nxd5 {[%clk 0:02:30.9]} 11. cxd5
{[%clk 0:02:38.8]} 11... c6 {[%clk 0:02:27.8]} 12. Bc4 {[%clk 0:02:39.2]} 12...
cxd5 {[%clk 0:02:23.2]} 13. Bxd5 {[%clk 0:02:39]} 13... h6 {[%clk 0:02:23.4]}
14. O-O-O {[%clk 0:02:25.9]} 14... Re8 {[%clk 0:02:13.7]} 15. Kb1 {[%clk
0:02:10.9]} 15... Nd7 {[%clk 0:02:13.5]} 16. Rc1 {[%clk 0:01:44.1]} 16... Nf6
{[%clk 0:02:12.8]} 17. Rc7 {[%clk 0:01:43]} 17... Nxd5 {[%clk 0:01:13.9]} 18.
exd5 {[%clk 0:01:43.9]} 18... Bf5+ {[%clk 0:00:59.5]} 19. Ka1 {[%clk 0:01:42.2]}
19... Red8 {[%clk 0:00:51.5]} 20. Rd1 {[%clk 0:01:39.7]} 20... Be4 {[%clk
0:00:36.6]} 21. d6 {[%clk 0:01:39.3]} 21... Bc6 {[%clk 0:00:30.6]} 22. Bc5
{[%clk 0:01:17.5]} 22... Rd7 {[%clk 0:00:17.7]} 23. Re1 {[%clk 0:01:11.4]} 23...
Rxc7 {[%clk 0:00:16.8]} 24. dxc7 {[%clk 0:01:11.6]} 24... Rc8 {[%clk 0:00:16.8]}
25. Bd6 {[%clk 0:01:06.3]} 25... f6 {[%clk 0:00:17]} 26. Nd2 {[%clk 0:00:52.5]}
26... Kf7 {[%clk 0:00:17]} 27. f4 {[%clk 0:00:52.6]} 27... Ke6 {[%clk
0:00:17.6]} 28. fxe5 {[%clk 0:00:51.4]} 28... fxe5 {[%clk 0:00:18.5]} 29. Nc4
{[%clk 0:00:49.6]} 29... Bd5 {[%clk 0:00:16.8]} 30. Bxe5 {[%clk 0:00:47.9]}
30... Bxc4 {[%clk 0:00:15.5]} 31. Bxg7+ {[%clk 0:00:48.5]} 31... Kd7 {[%clk
0:00:13.9]} 32. Be5 {[%clk 0:00:48.3]} 32... Re8 {[%clk 0:00:14.3]} 33. Rd1+
{[%clk 0:00:47.7]} 33... Kc8 {[%clk 0:00:14.3]} 34. Bg3 {[%clk 0:00:45]} 34...
Bb5 {[%clk 0:00:13]} 35. b3 {[%clk 0:00:42.3]} 35... Bc6 {[%clk 0:00:12.8]} 36.
Rd2 {[%clk 0:00:42.9]} 36... h5 {[%clk 0:00:12.4]} 37. Kb2 {[%clk 0:00:42.2]}
37... b6 {[%clk 0:00:12.5]} 38. Kc3 {[%clk 0:00:41.4]} 38... Bd7 {[%clk
0:00:12.8]} 39. Rd5 {[%clk 0:00:37.3]} 39... Bf5 {[%clk 0:00:13.1]} 40. Bf4
{[%clk 0:00:26.2]} 40... Kb7 {[%clk 0:00:13.3]} 41. Rd8 {[%clk 0:00:25.4]} 41...
Re4 {[%clk 0:00:07.7]} 42. Rb8+ {[%clk 0:00:24.2]} 42... Ka6 {[%clk 0:00:07.5]}
43. g3 {[%clk 0:00:22.9]} 43... Re1 {[%clk 0:00:04.8]} 44. c8=Q+ {[%clk
0:00:22.6]} 44... Bxc8 {[%clk 0:00:03.4]} 45. Rxc8 {[%clk 0:00:23.5]} 45... Rc1+
{[%clk 0:00:03.2]} 46. Bxc1 {[%clk 0:00:23.7]} 1-0

[Event "*** Titled Tuesday Blitz"]
[Site "Chess.com"]
[Date "2021.03.09"]
[Round "1"]
[White "lamomiablanca"]
[Black "Nozdrachev_Vladislav"]
[Result "0-1"]
[WhiteElo "2379"]
[BlackElo "2703"]
[TimeControl "180+1"]
[EndTime "10:07:32 PST"]
[Termination "Nozdrachev_Vladislav won by resignation"]

1. e4 {[%clk 0:02:57.8]} 1... e5 {[%clk 0:02:58.5]} 2. Nf3 {[%clk 0:02:57]} 2...
Nc6 {[%clk 0:02:58.5]} 3. Nc3 {[%clk 0:02:56.1]} 3... Nf6 {[%clk 0:02:56.6]} 4.
d4 {[%clk 0:02:54.2]} 4... exd4 {[%clk 0:02:56.5]} 5. Nxd4 {[%clk 0:02:54.2]}
5... Bc5 {[%clk 0:02:56.7]} 6. Be3 {[%clk 0:02:53.1]} 6... Bb6 {[%clk
0:02:56.5]} 7. Qd2 {[%clk 0:02:52.7]} 7... O-O {[%clk 0:02:55.8]} 8. O-O-O
{[%clk 0:02:44.8]} 8... Re8 {[%clk 0:02:55.2]} 9. f3 {[%clk 0:02:41.5]} 9... d5
{[%clk 0:02:54.2]} 10. exd5 {[%clk 0:02:33.2]} 10... Nxd5 {[%clk 0:02:53.9]} 11.
Bg5 {[%clk 0:02:33]} 11... f6 {[%clk 0:02:53.5]} 12. Bc4 {[%clk 0:02:11.7]}
12... Nxd4 {[%clk 0:02:52.6]} 13. Nxd5 {[%clk 0:01:55.9]} 13... Be6 {[%clk
0:02:45.1]} 14. Nxb6 {[%clk 0:01:54.1]} 14... axb6 {[%clk 0:02:43.2]} 15. Qxd4
{[%clk 0:01:31.4]} 15... Qxd4 {[%clk 0:02:39.1]} 16. Bxe6+ {[%clk 0:01:23.1]}
16... Rxe6 {[%clk 0:02:38.4]} 17. Rxd4 {[%clk 0:01:23.7]} 17... fxg5 {[%clk
0:02:38.2]} 18. a3 {[%clk 0:01:20.6]} 18... Re7 {[%clk 0:02:10.7]} 19. Rhd1
{[%clk 0:01:14.2]} 19... Rae8 {[%clk 0:02:09.9]} 20. b3 {[%clk 0:01:10.7]} 20...
Kf7 {[%clk 0:02:09.6]} 21. a4 {[%clk 0:01:07.9]} 21... Kf6 {[%clk 0:02:08.8]}
22. R1d2 {[%clk 0:01:06.4]} 22... Re1+ {[%clk 0:02:02.9]} 23. Kb2 {[%clk
0:01:03.4]} 23... R8e7 {[%clk 0:02:02.8]} 24. Rd7 {[%clk 0:00:55.6]} 24... h5
{[%clk 0:02:01.2]} 25. Rxe7 {[%clk 0:00:53.8]} 25... Rxe7 {[%clk 0:02:00.4]} 26.
Kc3 {[%clk 0:00:52.6]} 26... g6 {[%clk 0:01:48.8]} 27. Rd8 {[%clk 0:00:51.3]}
27... g4 {[%clk 0:01:43.9]} 28. fxg4 {[%clk 0:00:49.9]} 28... hxg4 {[%clk
0:01:43.4]} 29. Kd2 {[%clk 0:00:47.4]} 29... Rh7 {[%clk 0:01:40.7]} 30. h3
{[%clk 0:00:36.7]} 30... gxh3 {[%clk 0:01:35.1]} 31. gxh3 {[%clk 0:00:36.7]}
31... Kg5 {[%clk 0:01:34]} 32. Rd3 {[%clk 0:00:32.9]} 32... Kh4 {[%clk
0:01:30.4]} 33. Ke2 {[%clk 0:00:31.6]} 33... Rf7 {[%clk 0:01:27.5]} 34. Re3
{[%clk 0:00:27.9]} 34... g5 {[%clk 0:01:27]} 35. Rd3 {[%clk 0:00:26.3]} 35... c6
{[%clk 0:01:24.5]} 36. Re3 {[%clk 0:00:26.1]} 36... b5 {[%clk 0:01:13.9]} 37.
axb5 {[%clk 0:00:25.4]} 37... cxb5 {[%clk 0:01:14.8]} 38. Ke1 {[%clk 0:00:21.4]}
38... b4 {[%clk 0:01:09.4]} 39. Ke2 {[%clk 0:00:21.1]} 39... Rc7 {[%clk
0:01:08.6]} 40. Kd2 {[%clk 0:00:16.2]} 40... Rc3 {[%clk 0:01:05.7]} 41. Re4+
{[%clk 0:00:16.3]} 41... Kxh3 {[%clk 0:01:04.2]} 42. Rxb4 {[%clk 0:00:16.8]}
42... Rc7 {[%clk 0:01:03.5]} 43. Rb6 {[%clk 0:00:13.7]} 43... g4 {[%clk
0:01:03.4]} 44. Ke3 {[%clk 0:00:13.8]} 44... g3 {[%clk 0:00:46.2]} 45. Rh6+
{[%clk 0:00:11.5]} 45... Kg2 {[%clk 0:00:45.2]} 46. c4 {[%clk 0:00:11.7]} 46...
Re7+ {[%clk 0:00:39.2]} 47. Kf4 {[%clk 0:00:11.4]} 47... Kf2 {[%clk 0:00:37.8]}
48. Kf5 {[%clk 0:00:04.5]} 48... g2 {[%clk 0:00:36.9]} 49. Rg6 {[%clk
0:00:05.2]} 49... Re3 {[%clk 0:00:32.6]} 50. Rxg2+ {[%clk 0:00:03.6]} 50... Kxg2
{[%clk 0:00:32.2]} 0-1